fUST/lending_fUST_20251121
["ID","MTS","AMOUNT","RATE_DAILY","PERIOD"]
[394574160,1763727033208,-890.594456,0.00019972,7]
[394574162,1763727033217,-890.594456,0.00019972,7]
[394574165,1763727033227,-890.594456,0.00019972,7]
[394574167,1763727033236,-890.594456,0.00019972,7]
[394574169,1763727033246,-2836.95106,0.00019972,7]
[394574171,1763727033255,-2836.95106,0.00019972,7]
[394574173,1763727033265,-2836.95106,0.00019972,7]
[394574175,1763727033274,-2836.95106,0.00019972,7]
[394574176,1763727033283,-189.488571,0.00019972,7]
[394574178,1763727033292,-3902.75,0.0001999,3]
[394574180,1763727033301,-1951.37,0.0001999,3]
[394574182,1763727033310,-21549.73100022,0.0002,2]
[394574184,1763727033320,-201.55146759,0.0002,2]
[394574186,1763727033329,-501.48179361,0.0002,2]
[394574188,1763727033338,-1000.0,0.0002,5]
[394574190,1763727033347,-250.0,0.0002,10]
[394574192,1763727033356,-151.82468821,0.0002,2]
[394574194,1763727033365,-250.0,0.000201,10]
[394574196,1763727033374,-189.96761422,0.00020127,2]
[394574198,1763727033384,-1951.38,0.00020168,3]
[394574200,1763727033394,-1153.704678,0.00020187,2]
[394574203,1763727033403,-250.0,0.000202,10]
[394574204,1763727033412,-250.0,0.000203,10]
[394574207,1763727033422,-169.454749,0.0002038,7]
[394574209,1763727033431,-250.0,0.000204,10]
[394574211,1763727033441,-312.0,0.00020465,2]
[394574213,1763727033450,-1184.60297874,0.00020471,2]
[394574215,1763727033459,-151.0,0.000205,7]
[394574217,1763727033468,-151.0,0.000205,7]
[394574219,1763727033478,-151.0,0.000205,7]
[394574220,1763727033487,-252.269919,0.000205,7]
[394574223,1763727033497,-890.594456,0.000205,7]
[394574224,1763727033506,-890.594456,0.000205,7]
[394574227,1763727033516,-890.594456,0.000205,7]
[394574229,1763727033525,-890.594456,0.000205,7]
[394574231,1763727033534,-250.0,0.000205,10]
[394574233,1763727033543,-2836.95106,0.000205,7]
[394574234,1763727033553,-2836.95106,0.000205,7]
[394574236,1763727033562,-2836.95106,0.000205,7]
[394574238,1763727033572,-2836.95106,0.000205,7]
[394574241,1763727033582,-277.43612524,0.00020531,2]
[394574243,1763727033591,-273.97963213,0.00020531,2]
[394574245,1763727033600,-151.0,0.00020548,7]
[394574247,1763727033610,-321.042743,0.00020548,7]
[394574249,1763727033619,-321.042743,0.00020548,7]
[394574251,1763727033628,-321.042743,0.00020548,7]
[394574253,1763727033638,-321.042743,0.00020548,7]
[394574255,1763727033648,-352.286462,0.00020548,7]
[394574257,1763727033658,-352.286462,0.00020548,7]
[394574259,1763727033667,-352.286462,0.00020548,7]
[394574261,1763727033676,-352.286462,0.00020548,7]
[394574263,1763727033686,-703.785203,0.00020548,7]
[394574265,1763727033695,-703.785203,0.00020548,7]
[394574267,1763727033704,-703.785203,0.00020548,7]
[394574269,1763727033713,-516.888364,0.00020548,7]
[394574270,1763727033722,-703.785203,0.00020548,7]
[394574272,1763727033731,-1207.463057,0.00020548,7]
[394574274,1763727033740,-1207.463057,0.00020548,7]
[394574276,1763727033749,-918.421422,0.00020548,7]
[394574277,1763727033759,-1418.318198,0.00020548,7]
[394574279,1763727033769,-1207.463057,0.00020548,7]
[394574281,1763727033781,-1418.318198,0.00020548,7]
[394574282,1763727033790,-1418.318198,0.00020548,7]
[394574284,1763727033800,-1418.318198,0.00020548,7]
[394574286,1763727033809,-1592.780368,0.00020548,7]
[394574287,1763727033819,-1592.780368,0.00020548,7]
[394574288,1763727033828,-1592.780368,0.00020548,7]
[394574289,1763727033837,-1592.780368,0.00020548,7]
[394574291,1763727033847,-169.469656,0.00020548,7]
[394574292,1763727033859,-169.469656,0.00020548,7]
[394574293,1763727033868,-169.469656,0.00020548,7]
[394574294,1763727033879,-169.469653,0.00020548,7]
[394574295,1763727033888,-151.0,0.00020548,7]
[394574296,1763727033898,-151.0,0.00020548,7]
[394574297,1763727033907,-267.138346,0.00020548,7]
[394574298,1763727033916,-2225.51792,0.00020548,7]
[394574299,1763727033926,-2225.51792,0.00020548,7]
[394574300,1763727033935,-2225.51792,0.00020548,7]
[394574301,1763727033946,-2225.517926,0.00020548,7]
[394574302,1763727033955,-151.0,0.00020548,7]
[394574303,1763727033964,-151.0,0.00020548,7]
[394574304,1763727033973,-151.0,0.00020548,7]
[394574305,1763727033982,-151.0,0.00020548,7]
[394574306,1763727033992,-151.0,0.00020548,7]
[394574307,1763727034002,-151.0,0.00020548,7]
[394574308,1763727034011,-890.594456,0.00020548,7]
[394574309,1763727034021,-890.594456,0.00020548,7]
[394574310,1763727034031,-890.594456,0.00020548,7]
[394574311,1763727034040,-890.594456,0.00020548,7]
[394574312,1763727034049,-890.594456,0.00020548,7]
[394574313,1763727034057,-890.594456,0.00020548,7]
[394574314,1763727034067,-890.594456,0.00020548,7]
[394574315,1763727034076,-890.594456,0.00020548,7]
[394574316,1763727034085,-2836.95106,0.00020548,7]
[394574317,1763727034094,-2836.95106,0.00020548,7]
[394574318,1763727034102,-2836.95106,0.00020548,7]
[394574319,1763727034111,-2836.95106,0.00020548,7]
[394574320,1763727034120,-2836.95106,0.00020548,7]
[394574321,1763727034129,-2836.95106,0.00020548,7]
[394574322,1763727034138,-2836.95106,0.00020548,7]
[394574323,1763727034148,-2836.95106,0.00020548,7]
[394574324,1763727034158,-169.454749,0.0002057,7]
[394574325,1763727034167,-250.0,0.000206,10]
[394574326,1763727034176,-250.0,0.000207,10]
[394574327,1763727034186,-278.129832,0.0002074,2]
[394574328,1763727034195,-165.360741,0.0002076,7]
[394574329,1763727034204,-169.454749,0.0002076,7]
[394574330,1763727034214,-250.0,0.000208,10]
[394574331,1763727034223,-272.04773,0.000209,10]
[394574332,1763727034232,-8257.7505632,0.00020922,2]
[394574333,1763727034241,-151.0,0.00020973,7]
[394574334,1763727034250,-151.0,0.00020973,7]
[394574335,1763727034260,-151.0,0.00020973,7]
[394574336,1763727034269,-158.737242,0.00020973,7]
[394574337,1763727034278,-272.903675,0.00020973,7]
[394574338,1763727034287,-272.903675,0.00020973,7]
[394574339,1763727034297,-272.903675,0.00020973,7]
[394574340,1763727034306,-272.903675,0.00020973,7]
[394574341,1763727034316,-155.529772,0.00020973,7]
[394574342,1763727034326,-155.529772,0.00020973,7]
[394574343,1763727034335,-155.529772,0.00020973,7]
[394574344,1763727034344,-155.529772,0.00020973,7]
[394574345,1763727034353,-151.0,0.00020973,7]
[394574346,1763727034363,-151.0,0.00020973,7]
[394574347,1763727034372,-151.0,0.00020973,7]
[394574348,1763727034381,-151.0,0.00020973,7]
[394574349,1763727034390,-321.042743,0.00020973,7]
[394574350,1763727034401,-321.042745,0.00020973,7]
[394574351,1763727034410,-352.286462,0.00020973,7]
[394574352,1763727034419,-352.286462,0.00020973,7]
[394574353,1763727034428,-352.286462,0.00020973,7]
[394574354,1763727034437,-352.286454,0.00020973,7]
[394574355,1763727034446,-703.785203,0.00020973,7]
[394574356,1763727034456,-703.785203,0.00020973,7]
[394574357,1763727034465,-703.785203,0.00020973,7]
[394574358,1763727034474,-703.785197,0.00020973,7]
[394574359,1763727034483,-1207.463057,0.00020973,7]
[394574360,1763727034492,-1207.463057,0.00020973,7]
[394574361,1763727034501,-918.421422,0.00020973,7]
[394574362,1763727034510,-1418.318198,0.00020973,7]
[394574363,1763727034520,-1418.318198,0.00020973,7]
[394574364,1763727034529,-1418.318198,0.00020973,7]
[394574365,1763727034539,-1418.318195,0.00020973,7]
[394574366,1763727034548,-1592.780368,0.00020973,7]
[394574367,1763727034557,-1592.780368,0.00020973,7]
[394574368,1763727034567,-1592.780368,0.00020973,7]
[394574369,1763727034576,-1592.780364,0.00020973,7]
[394574370,1763727034585,-151.0,0.00020973,7]
[394574371,1763727034594,-151.0,0.00020973,7]
[394574372,1763727034604,-151.0,0.00020973,7]
[394574373,1763727034613,-890.594456,0.00020973,7]
[394574374,1763727034622,-890.594456,0.00020973,7]
[394574375,1763727034631,-890.594456,0.00020973,7]
[394574376,1763727034640,-890.594449,0.00020973,7]
[394574377,1763727034650,-2836.95106,0.00020973,7]
[394574378,1763727034660,-2836.95106,0.00020973,7]
[394574379,1763727034669,-2836.95106,0.00020973,7]
[394574380,1763727034678,-2836.95107,0.00020973,7]
[394574381,1763727034688,-151.0,0.0002099,7]
[394574382,1763727034697,-151.0,0.0002099,7]
[394574383,1763727034706,-272.903675,0.0002099,7]
[394574384,1763727034715,-272.903675,0.0002099,7]
[394574385,1763727034725,-272.903675,0.0002099,7]
[394574386,1763727034734,-272.903675,0.0002099,7]
[394574387,1763727034744,-155.529772,0.0002099,7]
[394574388,1763727034753,-155.529772,0.0002099,7]
[394574389,1763727034763,-155.529772,0.0002099,7]
[394574390,1763727034772,-151.0,0.0002099,7]
[394574391,1763727034786,-151.0,0.0002099,7]
[394574392,1763727034795,-151.0,0.0002099,7]
[394574393,1763727034804,-151.0,0.0002099,7]
[394574394,1763727034815,-100000.0,0.0002099,2]
[394574395,1763727034824,-3000.0,0.00021,2]
[394574396,1763727034834,-4293.75902334,0.00021,5]
[394574397,1763727034843,-1548.76910117,0.00021,10]
[394574398,1763727034854,-1000.0,0.00021,21]
[394574399,1763727034863,-200.0,0.00021,2]
[394574400,1763727034872,-14034.73101793,0.00021,2]
[394574401,1763727034882,-151.0,0.00021,7]
[394574402,1763727034891,-151.0,0.00021,7]
[394574403,1763727034901,-272.903675,0.00021,7]
[394574404,1763727034910,-272.903675,0.00021,7]
[394574405,1763727034920,-272.903675,0.00021,7]
[394574406,1763727034930,-272.903675,0.00021,7]
[394574407,1763727034940,-155.529772,0.00021,7]
[394574408,1763727034949,-155.529772,0.00021,7]
[394574409,1763727034959,-155.529772,0.00021,7]
[394574410,1763727034968,-151.0,0.00021,7]
[394574411,1763727034978,-151.0,0.00021,7]
[394574412,1763727034987,-151.0,0.00021,7]
[394574413,1763727034996,-151.0,0.00021,7]
[394574414,1763727035006,-151.0,0.00021,7]
[394574415,1763727035015,-151.0,0.00021,7]
[394574416,1763727035024,-217.902223,0.00021,7]
[394574417,1763727035034,-150.0,0.00021,2]
[394574418,1763727035043,-126919.0,0.00021,7]
[394574419,1763727035052,-1000.0,0.00021,2]
[394574420,1763727035062,-197.126051,0.00021,2]
[394574421,1763727035071,-151.0,0.00021216,7]
[394574422,1763727035080,-151.0,0.00021216,7]
[394574423,1763727035089,-272.903675,0.00021216,7]
[394574424,1763727035099,-272.903675,0.00021216,7]
[394574425,1763727035111,-272.903675,0.00021216,7]
[394574426,1763727035120,-272.903666,0.00021216,7]
[394574427,1763727035129,-155.529772,0.00021216,7]
[394574428,1763727035139,-155.529772,0.00021216,7]
[394574429,1763727035149,-155.529772,0.00021216,7]
[394574430,1763727035159,-875.88,0.0002126,3]
[394574431,1763727035168,-437.94,0.0002126,3]
[394574432,1763727035177,-1184.60297874,0.00021272,2]
[394574433,1763727035186,-7805.5,0.0002136,3]
[394574434,1763727035195,-3902.74,0.0002136,3]
[394574435,1763727035205,-170.7381647,0.00021381,2]
[394574436,1763727035214,-1722.55388233,0.00021408,2]
[394574437,1763727035223,-12783.58631416,0.000215,2]
[394574438,1763727035233,-1842.5532056,0.00021576,2]
[394574439,1763727035242,-150.0,0.00021603,2]
[394574440,1763727035251,-449.2514013,0.00021735,2]
[394574441,1763727035261,-1000.0,0.000218,6]
[394574442,1763727035270,-15700.0,0.000218,2]
[394574443,1763727035279,-604.48,0.00021917,2]
[394574444,1763727035289,-1002.354063,0.00021918,7]
[394574446,1763727035299,-1002.354063,0.00021918,7]
[394574447,1763727035308,-1002.354063,0.00021918,7]
[394574448,1763727035317,-1002.354063,0.00021918,7]
[394574449,1763727035462,-1002.354063,0.00021918,7]
[394574450,1763727035472,-1002.354063,0.00021918,7]
[394574451,1763727035481,-1002.354063,0.00021918,7]
[394574452,1763727035490,-1002.354063,0.00021918,7]
[394574453,1763727035499,-1002.354063,0.00021918,7]
[394574454,1763727035508,-1002.354063,0.00021918,7]
[394574455,1763727035517,-1002.354063,0.00021918,7]
[394574456,1763727035526,-1002.354063,0.00021918,7]
[394574457,1763727035535,-1002.354063,0.00021918,7]
[394574458,1763727035545,-1002.354063,0.00021918,7]
[394574459,1763727035554,-1002.354063,0.00021918,7]
[394574460,1763727035563,-1002.354063,0.00021918,7]
[394574461,1763727035572,-1002.354063,0.00021918,7]
[394574462,1763727035581,-1002.354063,0.00021918,7]
[394574463,1763727035590,-1002.354063,0.00021918,7]
[394574464,1763727035599,-1002.354072,0.00021918,7]
[394574465,1763727035608,-1491.8896815,0.00021918,7]
[394574466,1763727035617,-151.0,0.00021918,2]
[394574467,1763727035626,-151.0,0.00021918,2]
[394574468,1763727035636,-151.0,0.00021918,2]
[394574469,1763727035646,-203.1256433,0.00021918,2]
[394574470,1763727035656,-151.0,0.00021918,2]
[394574471,1763727035665,-151.0,0.00021918,2]
[394574472,1763727035674,-151.0,0.00021918,2]
[394574473,1763727035684,-151.0,0.00021918,2]
[394574474,1763727035693,-151.0,0.00021918,2]
[394574475,1763727035702,-151.0,0.00021918,2]
[394574476,1763727035712,-151.0,0.00021918,2]
[394574477,1763727035721,-151.0,0.00021918,2]
[394574478,1763727035730,-151.0,0.00021918,2]
[394574479,1763727035740,-151.0,0.00021918,2]
[394574480,1763727035749,-151.0,0.00021918,2]
[394574481,1763727035759,-151.0,0.00021918,2]
[394574482,1763727035768,-151.0,0.00021918,2]
[394574483,1763727035781,-151.0,0.00021918,2]
[394574484,1763727035790,-151.0,0.00021918,2]
[394574485,1763727035801,-151.0,0.00021918,2]
[394574486,1763727035810,-151.0,0.00021918,2]
[394574487,1763727035820,-151.0,0.00021918,2]
[394574488,1763727035829,-151.0,0.00021918,2]
[394574489,1763727035839,-151.0,0.00021918,2]
[394574490,1763727035848,-151.0,0.00021918,2]
[394574491,1763727035859,-151.0,0.00021918,2]
[394574492,1763727035868,-151.0,0.00021918,2]
[394574493,1763727035877,-151.0,0.00021918,2]
[394574494,1763727035886,-151.0,0.00021918,2]
[394574495,1763727035895,-151.0,0.00021918,2]
[394574496,1763727035905,-151.0,0.00021918,2]
[394574497,1763727035914,-281.69655829,0.00021918,2]
[394574498,1763727035923,-151.0,0.00021918,2]
[394574499,1763727035933,-151.0,0.00021918,2]
[394574500,1763727035942,-255.59479431,0.00021918,2]
[394574501,1763727035951,-151.0,0.00021918,2]
[394574502,1763727035960,-151.0,0.00021918,2]
[394574503,1763727035969,-151.0,0.00021918,2]
[394574504,1763727035978,-151.0,0.00021918,2]
[394574505,1763727035987,-151.0,0.00021918,2]
[394574506,1763727035996,-150.0,0.00021918,7]
[394574507,1763727036006,-151.0,0.00021918,2]
[394574508,1763727036015,-151.0,0.00021918,2]
[394574509,1763727036024,-151.0,0.00021918,2]
[394574510,1763727036033,-151.0,0.00021918,2]
[394574511,1763727036042,-151.0,0.00021918,2]
[394574512,1763727036051,-151.0,0.00021918,2]
[394574513,1763727036061,-151.0,0.00021918,2]
[394574514,1763727036070,-151.0,0.00021918,2]
[394574515,1763727036079,-151.0,0.00021918,2]
[394574516,1763727036088,-151.0,0.00021918,2]
[394574517,1763727036098,-151.0,0.00021918,2]
[394574518,1763727036107,-151.0,0.00021918,2]
[394574519,1763727036115,-151.0,0.00021918,2]
[394574520,1763727036125,-151.0,0.00021918,2]
[394574521,1763727036134,-151.0,0.00021918,2]
[394574522,1763727036143,-151.0,0.00021918,2]
[394574523,1763727036152,-151.0,0.00021918,2]
[394574524,1763727036161,-151.0,0.00021918,2]
[394574525,1763727036170,-151.0,0.00021918,2]
[394574526,1763727036179,-151.0,0.00021918,2]
[394574527,1763727036189,-185.66095035,0.00021918,2]
[394574528,1763727036198,-151.0,0.00021918,2]
[394574529,1763727036207,-151.0,0.00021918,2]
[394574530,1763727036216,-151.0,0.00021918,2]
[394574531,1763727036225,-500.0,0.00021918,2]
[394574532,1763727036235,-500.0,0.00021918,2]
[394574533,1763727036244,-500.0,0.00021918,2]
[394574534,1763727036254,-500.0,0.00021918,2]
[394574535,1763727036263,-500.0,0.00021918,2]
[394574536,1763727036271,-500.0,0.00021918,2]
[394574537,1763727036281,-500.0,0.00021918,2]
[394574538,1763727036291,-500.0,0.00021918,2]
[394574539,1763727036300,-500.0,0.00021918,2]
[394574540,1763727036310,-500.0,0.00021918,2]
[394574541,1763727036319,-500.0,0.00021918,2]
[394574542,1763727036329,-500.0,0.00021918,2]
[394574543,1763727036338,-500.0,0.00021918,2]
[394574544,1763727036347,-500.0,0.00021918,2]
[394574545,1763727036356,-500.0,0.00021918,2]
[394574546,1763727036366,-520.65713114,0.00021918,2]
[394574547,1763727036375,-500.0,0.00021918,2]
[394574548,1763727036384,-500.0,0.00021918,2]
[394574549,1763727036394,-500.0,0.00021918,2]
[394574550,1763727036406,-500.0,0.00021918,2]
[394574551,1763727036415,-500.0,0.00021918,2]
[394574552,1763727036424,-500.0,0.00021918,2]
[394574553,1763727036433,-500.0,0.00021918,2]
[394574554,1763727036443,-500.0,0.00021918,2]
[394574555,1763727036452,-563.76501195,0.0002196,10]
[394574556,1763727036462,-500.0,0.00021973,2]
[394574557,1763727036471,-500.0,0.00021973,2]
[394574558,1763727036480,-453.9505738,0.00021973,2]
[394574559,1763727036490,-1174.5,0.00022,14]
[394574560,1763727036500,-2000.0,0.00022,14]
[394574561,1763727036510,-2000.0,0.00022,14]
[394574562,1763727036520,-2000.0,0.00022,14]
[394574563,1763727036530,-2000.0,0.00022,7]
[394574564,1763727036539,-1000.0,0.00022,22]
[394574565,1763727036549,-358008.47,0.00022,2]
[394574566,1763727036559,-3309.52,0.00022,7]
[394574567,1763727036571,-1119.22,0.00022,14]
[394574568,1763727036580,-396.1023285,0.00022025,2]
[394574569,1763727036591,-396.1023285,0.00022025,2]
[394574570,1763727036600,-1184.60297874,0.00022073,2]
[394574571,1763727036609,-3000.0,0.00022096,2]
[394574572,1763727036619,-583.39721864,0.00022192,7]
[394574573,1763727036628,-1000.0,0.00022315,7]
[394574574,1763727036637,-227.53588212,0.0002238,2]
[394574575,1763727036651,-339.0,0.00022465,2]
[394574576,1763727036661,-198.58375275,0.00022476,2]
[394574577,1763727036670,-349.39259353,0.00022476,2]
[394574578,1763727036680,-174.69629674,0.00022476,2]
[394574579,1763727036690,-154.72066909,0.00022476,2]
[394574580,1763727036699,-169.454749,0.0002248,2]
[394574581,1763727036709,-165.360741,0.0002248,2]
[394574582,1763727036718,-423.90563871,0.000225,2]
[394574583,1763727036727,-1000.0,0.00022521,2]
[394574584,1763727036737,-1000.0,0.00022521,2]
[394574585,1763727036746,-172.64875307,0.00022565,2]
[394574586,1763727036755,-349.39259353,0.00022574,9]
[394574587,1763727036765,-158.5737699,0.00022728,2]
[394574588,1763727036774,-500.0,0.00022773,2]
[394574589,1763727036788,-358008.47,0.000228,2]
[394574590,1763727036798,-172.64875307,0.00022838,23]
[394574591,1763727036808,-458.41498956,0.00022855,2]
[394574592,1763727036817,-152.8049965,0.00022855,2]
[394574593,1763727036828,-1185.78758172,0.00022873,2]
[394574594,1763727036838,-458.41498956,0.00022954,9]
[394574595,1763727036848,-219.80909877,0.00022959,2]
[394574596,1763727036858,-212.61,0.00022972,2]
[394574597,1763727036867,-396.1023285,0.00022984,2]
[394574598,1763727036877,-5358.44399471,0.00023,2]
[394574599,1763727036886,-1000.0,0.00023,23]
[394574600,1763727036895,-164.0,0.00023,7]
[394574601,1763727036907,-267.731958,0.00023014,2]
[394574602,1763727036916,-458.41498956,0.00023053,17]
[394574603,1763727036925,-1395.1056574,0.00023068,2]
[394574604,1763727036935,-1500.0,0.00023068,2]
[394574605,1763727036944,-158.57376989,0.00023085,30]
[394574606,1763727036954,-152.80499649,0.00023085,30]
[394574607,1763727036964,-1119.22,0.000231,14]
[394574608,1763727036973,-172.64875307,0.00023112,45]
[394574609,1763727036982,-458.41498956,0.00023151,25]
[394574610,1763727036992,-3000.0,0.00023192,2]
[394574611,1763727037002,-3309.52,0.000232,7]
[394574612,1763727037012,-458.41498956,0.0002325,32]
[394574613,1763727037022,-1000.0,0.00023321,2]
[394574614,1763727037032,-458.41498956,0.00023349,40]
[394574615,1763727037041,-171.92713253,0.0002337,30]
[394574616,1763727037051,-172.64875307,0.00023385,66]
[394574617,1763727037060,-150.0,0.00023403,2]
[394574618,1763727037070,-151.69058807,0.00023416,30]
[394574619,1763727037079,-158.5737699,0.00023417,56]
[394574620,1763727037088,-458.41498956,0.00023448,48]
[394574621,1763727037098,-171.92713253,0.00023479,30]
[394574622,1763727037107,-252868.7527557,0.000235,2]
[394574631,1763727038363,-1657.64469379,0.00014652,2]
[394574632,1763727038372,-500.0,0.000148,2]
[394574633,1763727038382,-500.0,0.000148,2]
[394574634,1763727038391,-500.0,0.000148,2]
[394574635,1763727038401,-500.0,0.000148,2]
[394574636,1763727038411,-500.0,0.000148,2]
[394574637,1763727038420,-500.0,0.000148,2]
[394574638,1763727038429,-500.0,0.000148,2]
[394574639,1763727038439,-500.0,0.000148,2]
[394574640,1763727038448,-500.0,0.000148,2]
[394574641,1763727038458,-500.0,0.000148,2]
[394574642,1763727038467,-500.0,0.000148,2]
[394574643,1763727038477,-294.98056224,0.000148,2]
[394574644,1763727038486,-502.77760188,0.000148,2]
[394574645,1763727038496,-500.0,0.000148,2]
[394574646,1763727038506,-500.0,0.000148,2]
[394574647,1763727038515,-320.42170827,0.000148,2]
[394574648,1763727038527,-179.57829173,0.000148,2]
[394574649,1763727038537,-500.0,0.000148,2]
[394574650,1763727038546,-500.0,0.000148,2]
[394574651,1763727038555,-500.0,0.000148,2]
[394574652,1763727038565,-260.72112659,0.000148,2]
[394574655,1763727040291,-239.27887341,0.000148,2]
[394574656,1763727040301,-500.0,0.000148,2]
[394574657,1763727040310,-435.43741379,0.000148,2]
[394574658,1763727040319,-500.0,0.000148,2]
[394574659,1763727040329,-500.0,0.000148,2]
[394574660,1763727040338,-40.87171903,0.000148,2]
[394574669,1763727043202,168.0,0.00021908,120]
[394574670,1763727043646,168.0,0.00021898,120]
[394574675,1763727044493,168.0,0.00021888,120]
[394574686,1763727213885,150.0,0.00025279,120]
[394574703,1763727636440,5000.0,0.0001,3]
[394574704,1763727644636,1190.95001053,0.0001,3]
[394574728,1763727660252,5000.0,0.0001,3]
[394574730,1763727764389,150.5,0.00021908,120]
[394574731,1763727764850,150.5,0.00021898,120]
[394574732,1763727765297,150.5,0.00021888,120]
[394574733,1763727771959,300.0,0.00025,120]
[394574735,1763727818964,251.0,0.00025,120]
[394574738,1763727850167,2423.72918248,0.0001,3]
[394574741,1763727865064,246.51846243,0.0001,3]
[394574742,1763727880679,5000.0,0.0001,3]
[394574746,1763728026263,-236.79564409,8.422e-05,2]
[394574747,1763728026284,-150.0,8.465e-05,2]
[394574748,1763728026305,-236.79564409,8.507e-05,2]
[394574749,1763728026327,-177.0,0.00010465,2]
[394574750,1763728026347,-204.0,0.00012465,2]
[394574751,1763728026372,-165.8040503,0.00013686,2]
[394574752,1763728026395,-154.2594,0.00013699,2]
[394574753,1763728026415,-499.5892506,0.000139,2]
[394574758,1763728048096,-464.05088215,0.00013761,2]
[394574759,1763728048118,-464.05088215,0.000139,2]
[394574760,1763728048147,-154.2594,0.00014,3]
[394574761,1763728048172,-35.85058539,0.00014465,2]
[394574809,1763728232181,-652.78939655,0.00012375,2]
[394574811,1763728232192,-1827.28013372,0.000125,2]
[394574812,1763728232202,-1099.05551,0.00013699,2]
[394574815,1763728232215,-195.14941461,0.0001432,2]
[394574816,1763728232227,-3800.9875852,0.00014386,2]
[394574817,1763728232237,-514.35285439,0.00014386,2]
[394574818,1763728232250,-685.64714561,0.00014386,2]
[394574819,1763728232260,-3520.88290199,0.00014387,2]
[394574820,1763728232277,-25067.30000001,0.00014387,2]
[394575114,1763728238062,-150.0,0.00012438,2]
[394575116,1763728238072,-8596.73238063,0.00014387,2]
[394575117,1763728238125,-302.0,0.00014387,2]
[394575118,1763728238137,-79405.58280917,0.00014387,2]
[394575119,1763728238147,-177.0,0.00014438,2]
[394575120,1763728238157,-160.0,0.00014473,2]
[394575121,1763728238167,-353.13058887,0.00014474,2]
[394575122,1763728238180,-50000.0,0.00014485,2]
[394575123,1763728238194,-300.0,0.00014485,2]
[394575124,1763728238204,-300.0,0.00014485,2]
[394575125,1763728238215,-300.0,0.00014485,2]
[394575126,1763728238226,-500.0,0.00014486,2]
[394575127,1763728238236,-500.0,0.00014486,2]
[394575128,1763728238247,-448.14139096,0.00014486,2]
[394575129,1763728238258,-500.0,0.00014486,2]
[394575130,1763728238268,-500.0,0.00014486,2]
[394575131,1763728238284,-500.0,0.00014486,2]
[394575132,1763728238294,-500.0,0.00014486,2]
[394575133,1763728238304,-500.0,0.00014486,2]
[394575134,1763728238314,-500.0,0.00014486,2]
[394575135,1763728238323,-500.0,0.00014486,2]
[394575136,1763728238333,-500.0,0.00014486,2]
[394575137,1763728238343,-294.66237183,0.00014486,2]
[394575138,1763728238354,-500.0,0.00014486,2]
[394575139,1763728238364,-500.0,0.00014486,2]
[394575140,1763728238375,-500.0,0.00014486,2]
[394575141,1763728238384,-500.0,0.00014486,2]
[394575142,1763728238394,-500.0,0.00014486,2]
[394575143,1763728238404,-500.0,0.00014486,2]
[394575144,1763728238414,-500.0,0.00014486,2]
[394575145,1763728238424,-500.0,0.00014486,2]
[394575146,1763728238434,-500.0,0.00014486,2]
[394575147,1763728238444,-500.0,0.00014486,2]
[394575149,1763728238454,-500.0,0.00014486,2]
[394575150,1763728238463,-500.0,0.00014486,2]
[394575151,1763728238473,-500.0,0.00014486,2]
[394575152,1763728238482,-500.0,0.00014486,2]